{"text_format":"3","workbook":"xlsx","n_sheets":2,"sheets":["INIZIO","BUDGET MENSILE PERSONALE"],"read":"whole","date_system":"1900"}

{"sheet":"INIZIO","index":0,"n_rows":7,"n_cols":2,"rows_kept":7}
[null,"INFORMAZIONI SU QUESTO MODELLO"]
[null,"Utilizzare il foglio di lavoro budget mensile personale per tenere traccia delle entrate mensili previste ed effettive e dei costi previsti ed effettivi."]
[null,"Immettere le spese sostenute per diverse categorie nelle rispettive tabelle."]
[null,"Il saldo previsto, il saldo effettivo e la differenza vengono calcolati automaticamente."]
[null,"Nota: "]
[null,"Altre istruzioni sono state fornite nella colonna A nel foglio di lavoro BUDGET MENSILE PERSONALE. Questo testo è stato nascosto intenzionalmente. Per rimuovere il testo, seleziona la colonna A, quindi scegli ELIMINA. Per visualizzare il testo, selezionare la colonna A, quindi modificare il colore del carattere."]
[null,"Per ulteriori informazioni sulle tabelle del foglio di lavoro, premere MAIUSC, quindi F10 in una tabella, selezionare l'opzione TABELLA, quindi selezionare TESTO ALTERNATIVO"]

{"sheet":"BUDGET MENSILE PERSONALE","index":1,"n_rows":64,"n_cols":10,"rows_kept":64,"merged":[[3,1,5,1],[3,2,3,3],[3,6,4,8],[3,9,4,9],[4,2,4,3],[5,2,5,3],[5,6,6,8],[5,9,6,9],[7,1,9,1],[7,2,7,3],[7,6,8,8],[7,9,8,9],[8,2,8,3],[9,2,9,3],[58,6,59,8],[58,9,59,9],[60,6,61,8],[60,9,61,9],[62,6,63,8],[62,9,63,9]]}
["Creare un budget mensile personale in questo foglio di lavoro. Istruzioni utili per l'uso di questo foglio di lavoro si trovano nelle celle di questa colonna. Freccia verso il basso per iniziare."]
["Il titolo di questo foglio di lavoro è nella cella a destra. L’istruzione successiva si trova nella cella A4.","BUDGET MENSILE PERSONALE"]
[]
["L’etichetta Entrate mensili previste si trova nella cella a destra. Immettere le entrate 1 nella cella E4 e le entrate extra in E5 per calcolare il totale delle entrate mensili in E6. L'istruzione successiva si trova nella cella A6.","ENTRATE MENSILI PREVISTE","Entrata 1",null,{"v":4300,"d":"4,300.00 €"},null,"SALDO PREVISTO \n(entrate previste meno uscite)",null,null,{"$f":"E6-J59","v":{"v":3405,"d":"3,405.00 €"}}]
[null,null,"Entrate extra",null,{"v":300,"d":"300.00 €"}]
["Il saldo previsto viene calcolato automaticamente nella cella J4, il saldo effettivo in J6 e la differenza nella cella J8. L’istruzione successiva si trova nella cella A8.",null,"Totale entrate mensili",null,{"$f":"SUM(E4:E5)","v":{"v":4600,"d":"4,600.00 €"}},null,"SALDO EFFETTIVO \n(entrate effettive meno uscite)",null,null,{"$f":"E10-J61","v":{"v":3064,"d":"3,064.00 €"}}]
[]
["L’etichetta Entrate mensili effettive si trova nella cella a destra. Immettere le entrate 1 nella cella E8 e le entrate extra in E9 per calcolare il totale delle entrate mensili in E10. L’istruzione successiva si trova nella cella A12.","ENTRATE MENSILI EFFETTIVE","Entrata 1",null,{"v":4000,"d":"4,000.00 €"},null,"DIFFERENZA \n(effettiva meno prevista)",null,null,{"$f":"J6-J4","v":{"v":-341,"d":"-341.00 €"}}]
[null,null,"Entrate extra",null,{"v":300,"d":"300.00 €"}]
[null,null,"Totale entrate mensili",null,{"$f":"SUM(E8:E9)","v":{"v":4300,"d":"4,300.00 €"}}]
[]
["Immettere i dettagli nella tabella Alloggio partendo dalla cella a destra e nella tabella Svago partendo dalla cella G12. L'istruzione successiva si trova nella cella A25.","ALLOGGIO","Costo previsto","Costo effettivo","Differenza",null,"SVAGO","Costo previsto","Costo effettivo","Differenza"]
[null,"Mutuo o affitto",{"v":1000,"d":"1,000.00 €"},{"v":1000,"d":"1,000.00 €"},{"$f":"Alloggio[[#This Row],[Costo previsto]]-Alloggio[[#This Row],[Costo effettivo]]","v":{"v":0,"d":"0.00 €"}},null,"Notti fuori",null,null,{"$f":"Svago[[#This Row],[Costo previsto]]-Svago[[#This Row],[Costo effettivo]]","v":{"v":0,"d":"0.00 €"}}]
[null,"Telefono",{"v":54,"d":"54.00 €"},{"v":100,"d":"100.00 €"},{"$f":"Alloggio[[#This Row],[Costo previsto]]-Alloggio[[#This Row],[Costo effettivo]]","v":{"v":-46,"d":"-46.00 €"}},null,"Piattaforme musicali",null,null,{"$f":"Svago[[#This Row],[Costo previsto]]-Svago[[#This Row],[Costo effettivo]]","v":{"v":0,"d":"0.00 €"}}]
[null,"Elettricità",{"v":44,"d":"44.00 €"},{"v":56,"d":"56.00 €"},{"$f":"Alloggio[[#This Row],[Costo previsto]]-Alloggio[[#This Row],[Costo effettivo]]","v":{"v":-12,"d":"-12.00 €"}},null,"Film",null,null,{"$f":"Svago[[#This Row],[Costo previsto]]-Svago[[#This Row],[Costo effettivo]]","v":{"v":0,"d":"0.00 €"}}]
[null,"Gas",{"v":22,"d":"22.00 €"},{"v":28,"d":"28.00 €"},{"$f":"Alloggio[[#This Row],[Costo previsto]]-Alloggio[[#This Row],[Costo effettivo]]","v":{"v":-6,"d":"-6.00 €"}},null,"Concerti",null,null,{"$f":"Svago[[#This Row],[Costo previsto]]-Svago[[#This Row],[Costo effettivo]]","v":{"v":0,"d":"0.00 €"}}]
[null,"Acqua",{"v":8,"d":"8.00 €"},{"v":8,"d":"8.00 €"},{"$f":"Alloggio[[#This Row],[Costo previsto]]-Alloggio[[#This Row],[Costo effettivo]]","v":{"v":0,"d":"0.00 €"}},null,"Eventi sportivi",null,null,{"$f":"Svago[[#This Row],[Costo previsto]]-Svago[[#This Row],[Costo effettivo]]","v":{"v":0,"d":"0.00 €"}}]
[null,"Pay TV",{"v":34,"d":"34.00 €"},{"v":34,"d":"34.00 €"},{"$f":"Alloggio[[#This Row],[Costo previsto]]-Alloggio[[#This Row],[Costo effettivo]]","v":{"v":0,"d":"0.00 €"}},null,"Teatro",null,null,{"$f":"Svago[[#This Row],[Costo previsto]]-Svago[[#This Row],[Costo effettivo]]","v":{"v":0,"d":"0.00 €"}}]
[null,"Rimozione rifiuti",{"v":10,"d":"10.00 €"},{"v":10,"d":"10.00 €"},{"$f":"Alloggio[[#This Row],[Costo previsto]]-Alloggio[[#This Row],[Costo effettivo]]","v":{"v":0,"d":"0.00 €"}},null,"Altro",null,null,{"$f":"Svago[[#This Row],[Costo previsto]]-Svago[[#This Row],[Costo effettivo]]","v":{"v":0,"d":"0.00 €"}}]
[null,"Manutenzione o riparazioni",{"v":23,"d":"23.00 €"},{"v":0,"d":"0.00 €"},{"$f":"Alloggio[[#This Row],[Costo previsto]]-Alloggio[[#This Row],[Costo effettivo]]","v":{"v":23,"d":"23.00 €"}},null,"Altro",null,null,{"$f":"Svago[[#This Row],[Costo previsto]]-Svago[[#This Row],[Costo effettivo]]","v":{"v":0,"d":"0.00 €"}}]
[null,"Forniture",{"v":0,"d":"0.00 €"},{"v":0,"d":"0.00 €"},{"$f":"Alloggio[[#This Row],[Costo previsto]]-Alloggio[[#This Row],[Costo effettivo]]","v":{"v":0,"d":"0.00 €"}},null,"Altro",null,null,{"$f":"Svago[[#This Row],[Costo previsto]]-Svago[[#This Row],[Costo effettivo]]","v":{"v":0,"d":"0.00 €"}}]
[null,"Altro",{"v":0,"d":"0.00 €"},{"v":0,"d":"0.00 €"},{"$f":"Alloggio[[#This Row],[Costo previsto]]-Alloggio[[#This Row],[Costo effettivo]]","v":{"v":0,"d":"0.00 €"}},null,"Subtotale",null,null,{"$f":"SUBTOTAL(109,Svago[Differenza])","v":{"v":0,"d":"0.00 €"}}]
[null,"Subtotale",null,null,{"$f":"SUBTOTAL(109,Alloggio[Differenza])","v":{"v":-41,"d":"-41.00 €"}}]
[{"$nulls":6},"PRESTITI","Costo previsto","Costo effettivo","Differenza"]
["Immettere i dettagli nella tabella Trasporti partendo dalla cella a destra e nella tabella Prestiti partendo dalla cella G24. L'istruzione successiva si trova nella cella A35.","TRASPORTI","Costo previsto","Costo effettivo","Differenza",null,"Personale",null,null,{"$f":"Prestiti[[#This Row],[Costo previsto]]-Prestiti[[#This Row],[Costo effettivo]]","v":{"v":0,"d":"0.00 €"}}]
[null,"Pagamento veicolo",null,null,{"$f":"Trasporti[[#This Row],[Costo previsto]]-Trasporti[[#This Row],[Costo effettivo]]","v":{"v":0,"d":"0.00 €"}},null,"Studente",null,null,{"$f":"Prestiti[[#This Row],[Costo previsto]]-Prestiti[[#This Row],[Costo effettivo]]","v":{"v":0,"d":"0.00 €"}}]
[null,"Bus/taxi",null,null,{"$f":"Trasporti[[#This Row],[Costo previsto]]-Trasporti[[#This Row],[Costo effettivo]]","v":{"v":0,"d":"0.00 €"}},null,"Carta di credito",null,null,{"$f":"Prestiti[[#This Row],[Costo previsto]]-Prestiti[[#This Row],[Costo effettivo]]","v":{"v":0,"d":"0.00 €"}}]
[null,"Assicurazione",null,null,{"$f":"Trasporti[[#This Row],[Costo previsto]]-Trasporti[[#This Row],[Costo effettivo]]","v":{"v":0,"d":"0.00 €"}},null,"Carta di credito",null,null,{"$f":"Prestiti[[#This Row],[Costo previsto]]-Prestiti[[#This Row],[Costo effettivo]]","v":{"v":0,"d":"0.00 €"}}]
[null,"Licenze",null,null,{"$f":"Trasporti[[#This Row],[Costo previsto]]-Trasporti[[#This Row],[Costo effettivo]]","v":{"v":0,"d":"0.00 €"}},null,"Carta di credito",null,null,{"$f":"Prestiti[[#This Row],[Costo previsto]]-Prestiti[[#This Row],[Costo effettivo]]","v":{"v":0,"d":"0.00 €"}}]
[null,"Carburante",null,null,{"$f":"Trasporti[[#This Row],[Costo previsto]]-Trasporti[[#This Row],[Costo effettivo]]","v":{"v":0,"d":"0.00 €"}},null,"Altro",null,null,{"$f":"Prestiti[[#This Row],[Costo previsto]]-Prestiti[[#This Row],[Costo effettivo]]","v":{"v":0,"d":"0.00 €"}}]
[null,"Manutenzione",null,null,{"$f":"Trasporti[[#This Row],[Costo previsto]]-Trasporti[[#This Row],[Costo effettivo]]","v":{"v":0,"d":"0.00 €"}},null,"Subtotale",null,null,{"$f":"SUBTOTAL(109,Prestiti[Differenza])","v":{"v":0,"d":"0.00 €"}}]
[null,"Altro",null,null,{"$f":"Trasporti[[#This Row],[Costo previsto]]-Trasporti[[#This Row],[Costo effettivo]]","v":{"v":0,"d":"0.00 €"}}]
[null,"Subtotale",null,null,{"$f":"SUBTOTAL(109,Trasporti[Differenza])","v":{"v":0,"d":"0.00 €"}},null,"TASSE","Costo previsto","Costo effettivo","Differenza"]
[{"$nulls":6},"Nazionali",null,null,{"$f":"Tasse[[#This Row],[Costo previsto]]-Tasse[[#This Row],[Costo effettivo]]","v":{"v":0,"d":"0.00 €"}}]
["Immettere i dettagli nella tabella Assicurazione partendo dalla cella a destra e nella tabella Tasse partendo dalla cella G33. L’istruzione successiva si trova nella cella A42.","ASSICURAZIONE","Costo previsto","Costo effettivo","Differenza",null,"Regionali",null,null,{"$f":"Tasse[[#This Row],[Costo previsto]]-Tasse[[#This Row],[Costo effettivo]]","v":{"v":0,"d":"0.00 €"}}]
[null,"Casa",null,null,{"$f":"Assicurazione[[#This Row],[Costo previsto]]-Assicurazione[[#This Row],[Costo effettivo]]","v":{"v":0,"d":"0.00 €"}},null,"Locali",null,null,{"$f":"Tasse[[#This Row],[Costo previsto]]-Tasse[[#This Row],[Costo effettivo]]","v":{"v":0,"d":"0.00 €"}}]
[null,"Salute",null,null,{"$f":"Assicurazione[[#This Row],[Costo previsto]]-Assicurazione[[#This Row],[Costo effettivo]]","v":{"v":0,"d":"0.00 €"}},null,"Altro",null,null,{"$f":"Tasse[[#This Row],[Costo previsto]]-Tasse[[#This Row],[Costo effettivo]]","v":{"v":0,"d":"0.00 €"}}]
[null,"Vita",null,null,{"$f":"Assicurazione[[#This Row],[Costo previsto]]-Assicurazione[[#This Row],[Costo effettivo]]","v":{"v":0,"d":"0.00 €"}},null,"Subtotale",null,null,{"$f":"SUBTOTAL(109,Tasse[Differenza])","v":{"v":0,"d":"0.00 €"}}]
[null,"Altro",null,null,{"$f":"Assicurazione[[#This Row],[Costo previsto]]-Assicurazione[[#This Row],[Costo effettivo]]","v":{"v":0,"d":"0.00 €"}}]
[null,"Subtotale",null,null,{"$f":"SUBTOTAL(109,Assicurazione[Differenza])","v":{"v":0,"d":"0.00 €"}},null,"RISPARMI O INVESTIMENTI","Costo previsto","Costo effettivo","Differenza"]
[{"$nulls":6},"Fondo pensione",null,null,{"$f":"Risparmi[[#This Row],[Costo previsto]]-Risparmi[[#This Row],[Costo effettivo]]","v":{"v":0,"d":"0.00 €"}}]
["Immettere i dettagli nella tabella Alimentari partendo dalla cella a destra e nella tabella Risparmi partendo dalla cella G40. L’istruzione successiva si trova nella cella A48.","ALIMENTARI","Costo previsto","Costo effettivo","Differenza",null,"Conto investimento",null,null,{"$f":"Risparmi[[#This Row],[Costo previsto]]-Risparmi[[#This Row],[Costo effettivo]]","v":{"v":0,"d":"0.00 €"}}]
[null,"Generi alimentari",null,null,{"$f":"Alimentari[[#This Row],[Costo previsto]]-Alimentari[[#This Row],[Costo effettivo]]","v":{"v":0,"d":"0.00 €"}},null,"Altro",null,null,{"$f":"Risparmi[[#This Row],[Costo previsto]]-Risparmi[[#This Row],[Costo effettivo]]","v":{"v":0,"d":"0.00 €"}}]
[null,"Cene fuori",null,null,{"$f":"Alimentari[[#This Row],[Costo previsto]]-Alimentari[[#This Row],[Costo effettivo]]","v":{"v":0,"d":"0.00 €"}},null,"Subtotale",null,null,{"$f":"SUBTOTAL(109,Risparmi[Differenza])","v":{"v":0,"d":"0.00 €"}}]
[null,"Altro",null,null,{"$f":"Alimentari[[#This Row],[Costo previsto]]-Alimentari[[#This Row],[Costo effettivo]]","v":{"v":0,"d":"0.00 €"}}]
[null,"Subtotale",null,null,{"$f":"SUBTOTAL(109,Alimentari[Differenza])","v":{"v":0,"d":"0.00 €"}},null,"REGALI E DONAZIONI","Costo previsto","Costo effettivo","Differenza"]
[{"$nulls":6},"Beneficenza 1",null,null,{"$f":"Regali[[#This Row],[Costo previsto]]-Regali[[#This Row],[Costo effettivo]]","v":{"v":0,"d":"0.00 €"}}]
["Immettere i dettagli nella tabella Animali partendo dalla cella a destra e nella tabella Regali partendo dalla cella G46. L'istruzione successiva si trova nella cella A56.","ANIMALI","Costo previsto","Costo effettivo","Differenza",null,"Beneficenza 2",null,null,{"$f":"Regali[[#This Row],[Costo previsto]]-Regali[[#This Row],[Costo effettivo]]","v":{"v":0,"d":"0.00 €"}}]
[null,"Alimentari",null,null,{"$f":"Animali[[#This Row],[Costo previsto]]-Animali[[#This Row],[Costo effettivo]]","v":{"v":0,"d":"0.00 €"}},null,"Beneficenza 3",null,null,{"$f":"Regali[[#This Row],[Costo previsto]]-Regali[[#This Row],[Costo effettivo]]","v":{"v":0,"d":"0.00 €"}}]
[null,"Veterinario",null,null,{"$f":"Animali[[#This Row],[Costo previsto]]-Animali[[#This Row],[Costo effettivo]]","v":{"v":0,"d":"0.00 €"}},null,"Subtotale",null,null,{"$f":"SUBTOTAL(109,Regali[Differenza])","v":{"v":0,"d":"0.00 €"}}]
[null,"Toelettatura",null,null,{"$f":"Animali[[#This Row],[Costo previsto]]-Animali[[#This Row],[Costo effettivo]]","v":{"v":0,"d":"0.00 €"}}]
[null,"Giocattoli",null,null,{"$f":"Animali[[#This Row],[Costo previsto]]-Animali[[#This Row],[Costo effettivo]]","v":{"v":0,"d":"0.00 €"}},null,"SPESE LEGALI","Costo previsto","Costo effettivo","Differenza"]
[null,"Altro",null,null,{"$f":"Animali[[#This Row],[Costo previsto]]-Animali[[#This Row],[Costo effettivo]]","v":{"v":0,"d":"0.00 €"}},null,"Avvocato",null,null,{"$f":"Spese_legali[[#This Row],[Costo previsto]]-Spese_legali[[#This Row],[Costo effettivo]]","v":{"v":0,"d":"0.00 €"}}]
[null,"Subtotale",null,null,{"$f":"SUBTOTAL(109,Animali[Differenza])","v":{"v":0,"d":"0.00 €"}},null,"Alimenti",null,null,{"$f":"Spese_legali[[#This Row],[Costo previsto]]-Spese_legali[[#This Row],[Costo effettivo]]","v":{"v":0,"d":"0.00 €"}}]
[{"$nulls":6},"Pagamenti da vincoli o sentenze",null,null,{"$f":"Spese_legali[[#This Row],[Costo previsto]]-Spese_legali[[#This Row],[Costo effettivo]]","v":{"v":0,"d":"0.00 €"}}]
["Immettere i dettagli nella tabella Cura della persona partendo dalla cella a destra e nella tabella Spese legali partendo dalla cella G52. L'istruzione successiva si trova nella cella A59.","CURA DELLA PERSONA","Costo previsto","Costo effettivo","Differenza",null,"Altro",null,null,{"$f":"Spese_legali[[#This Row],[Costo previsto]]-Spese_legali[[#This Row],[Costo effettivo]]","v":{"v":0,"d":"0.00 €"}}]
[null,"Spese mediche",null,null,{"$f":"Cura_della_persona[[#This Row],[Costo previsto]]-Cura_della_persona[[#This Row],[Costo effettivo]]","v":{"v":0,"d":"0.00 €"}},null,"Subtotale",null,null,{"$f":"SUBTOTAL(109,Spese_legali[Differenza])","v":{"v":0,"d":"0.00 €"}}]
[null,"Parrucchiere/manicure",null,null,{"$f":"Cura_della_persona[[#This Row],[Costo previsto]]-Cura_della_persona[[#This Row],[Costo effettivo]]","v":{"v":0,"d":"0.00 €"}}]
["Il costo previsto totale viene calcolato automaticamente nella cella J59, il costo effettivo totale in J61 e la differenza totale in J63.","Abbigliamento",null,null,{"$f":"Cura_della_persona[[#This Row],[Costo previsto]]-Cura_della_persona[[#This Row],[Costo effettivo]]","v":{"v":0,"d":"0.00 €"}},null,"COSTO PREVISTO TOTALE",null,null,{"$f":"SUBTOTAL(109,Alloggio[Costo previsto],Trasporti[Costo previsto],Assicurazione[Costo previsto],Alimentari[Costo previsto],Animali[Costo previsto],Cura_della_persona[Costo previsto],Svago[Costo previsto],Prestiti[Costo previsto],Tasse[Costo previsto],Risparmi[Costo previsto],Regali[Costo previsto],Spese_legali[Costo previsto])","v":{"v":1195,"d":"1,195.00 €"}}]
[null,"Lavanderia",null,null,{"$f":"Cura_della_persona[[#This Row],[Costo previsto]]-Cura_della_persona[[#This Row],[Costo effettivo]]","v":{"v":0,"d":"0.00 €"}}]
[null,"Palestra",null,null,{"$f":"Cura_della_persona[[#This Row],[Costo previsto]]-Cura_della_persona[[#This Row],[Costo effettivo]]","v":{"v":0,"d":"0.00 €"}},null,"COSTO EFFETTIVO TOTALE",null,null,{"$f":"SUBTOTAL(109,Alloggio[Costo effettivo],Trasporti[Costo effettivo],Assicurazione[Costo effettivo],Alimentari[Costo effettivo],Animali[Costo effettivo],Cura_della_persona[Costo effettivo],Svago[Costo effettivo],Prestiti[Costo effettivo],Tasse[Costo effettivo],Risparmi[Costo effettivo],Regali[Costo effettivo],Spese_legali[Costo effettivo])","v":{"v":1236,"d":"1,236.00 €"}}]
[null,"Quote o contributi associativi",null,null,{"$f":"Cura_della_persona[[#This Row],[Costo previsto]]-Cura_della_persona[[#This Row],[Costo effettivo]]","v":{"v":0,"d":"0.00 €"}}]
[null,"Altro",null,null,{"$f":"Cura_della_persona[[#This Row],[Costo previsto]]-Cura_della_persona[[#This Row],[Costo effettivo]]","v":{"v":0,"d":"0.00 €"}},null,"DIFFERENZA TOTALE",null,null,{"$f":"J59-J61","v":{"v":-41,"d":"-41.00 €"}}]
[null,"Subtotale",null,null,{"$f":"SUBTOTAL(109,Cura_della_persona[Differenza])","v":{"v":0,"d":"0.00 €"}}]